[Event "*** Titled Tuesday Blitz"]
[Site "Chess.com"]
[Date "2019.07.02"]
[Round "3"]
[White "ozates"]
[Black "bluejay1897"]
[Result "1-0"]
[WhiteElo "2313"]
[BlackElo "2254"]
[TimeControl "180+2"]
[EndTime "13:37:51 PDT"]
[Termination "ozates won by resignation"]

1. e4 {[%clk 0:03:01.9]} 1... c5 {[%clk 0:03:00.6]} 2. Nf3 {[%clk 0:03:02.1]}
2... e6 {[%clk 0:03:01.5]} 3. d4 {[%clk 0:03:01.7]} 3... cxd4 {[%clk 0:03:03.4]}
4. Nxd4 {[%clk 0:03:02.6]} 4... Nc6 {[%clk 0:03:05]} 5. Nc3 {[%clk 0:03:01.2]}
5... Qc7 {[%clk 0:03:05.1]} 6. Be3 {[%clk 0:03:00.8]} 6... a6 {[%clk 0:03:05]}
7. Qf3 {[%clk 0:03:01.6]} 7... Ba3 {[%clk 0:02:56.2]} 8. Nxc6 {[%clk 0:01:43.4]}
8... Bxb2 {[%clk 0:02:55.1]} 9. Bd4 {[%clk 0:01:26.9]} 9... f6 {[%clk
0:02:41.5]} 10. Nd5 {[%clk 0:01:23]} 10... exd5 {[%clk 0:02:30.9]} 11. Bxb2
{[%clk 0:01:21.4]} 11... bxc6 {[%clk 0:02:26.2]} 12. exd5 {[%clk 0:01:17.9]}
12... Qa5+ {[%clk 0:02:26.7]} 13. Bc3 {[%clk 0:01:18.2]} 13... Qxd5 {[%clk
0:02:27.7]} 14. Qxd5 {[%clk 0:01:18.7]} 14... cxd5 {[%clk 0:02:28.8]} 15. g3
{[%clk 0:01:15.9]} 15... Bb7 {[%clk 0:02:28.3]} 16. Bg2 {[%clk 0:01:16.7]} 16...
Rc8 {[%clk 0:02:21.3]} 17. Rb1 {[%clk 0:01:14.7]} 17... Rxc3 {[%clk 0:02:11.5]}
18. Rxb7 {[%clk 0:01:14.5]} 18... Rxc2 {[%clk 0:02:12.5]} 19. O-O {[%clk
0:01:15.2]} 19... Ne7 {[%clk 0:02:11.9]} 20. Re1 {[%clk 0:01:16.3]} 20... Kd8
{[%clk 0:02:09]} 21. Rb8+ {[%clk 0:01:12.4]} 21... Rc8 {[%clk 0:02:06.8]} 22.
Rb7 {[%clk 0:01:10.9]} 22... Re8 {[%clk 0:02:03.7]} 23. Bh3 {[%clk 0:01:09.6]}
23... f5 {[%clk 0:02:00.1]} 24. Re5 {[%clk 0:01:02.5]} 24... g6 {[%clk
0:01:59.9]} 25. Bf1 {[%clk 0:01:01.5]} 25... Rc6 {[%clk 0:01:56.8]} 26. a4
{[%clk 0:00:56.9]} 26... Kc8 {[%clk 0:01:57.6]} 27. Ra7 {[%clk 0:00:55.2]} 27...
Kb8 {[%clk 0:01:51]} 28. Rxd7 {[%clk 0:00:55.9]} 28... Rc7 {[%clk 0:01:49]} 29.
Rd6 {[%clk 0:00:48.1]} 29... Rec8 {[%clk 0:01:42.9]} 30. Rxa6 {[%clk 0:00:47.1]}
30... Nc6 {[%clk 0:01:33.9]} 31. Rxd5 {[%clk 0:00:45.9]} 31... Nb4 {[%clk
0:01:35.2]} 32. Rb6+ {[%clk 0:00:41]} 32... Rb7 {[%clk 0:01:35.8]} 33. Rxb7+
{[%clk 0:00:42.2]} 33... Kxb7 {[%clk 0:01:36.7]} 34. Rb5+ {[%clk 0:00:43.7]} 1-0

[Event "*** Titled Tuesday Blitz"]
[Site "Chess.com"]
[Date "2019.07.02"]
[Round "3"]
[White "Vegan4future"]
[Black "alishersuleymenov"]
[Result "0-1"]
[WhiteElo "2399"]
[BlackElo "2604"]
[TimeControl "180+2"]
[EndTime "13:37:54 PDT"]
[Termination "alishersuleymenov won by checkmate"]

1. Nc3 {[%clk 0:03:01.5]} 1... Nf6 {[%clk 0:02:52.7]} 2. g4 {[%clk 0:03:02.5]}
2... Nxg4 {[%clk 0:02:52.7]} 3. e4 {[%clk 0:03:03.5]} 3... d6 {[%clk 0:02:53.4]}
4. Be2 {[%clk 0:03:04.4]} 4... Nf6 {[%clk 0:02:54.7]} 5. d4 {[%clk 0:03:05.9]}
5... Nbd7 {[%clk 0:02:55.8]} 6. Nf3 {[%clk 0:03:07.3]} 6... e5 {[%clk
0:02:56.6]} 7. Be3 {[%clk 0:03:08.8]} 7... exd4 {[%clk 0:02:57.4]} 8. Nxd4
{[%clk 0:03:10.7]} 8... g6 {[%clk 0:02:58.3]} 9. Qd2 {[%clk 0:03:11.9]} 9... Bg7
{[%clk 0:02:59.7]} 10. O-O-O {[%clk 0:03:13.4]} 10... O-O {[%clk 0:02:55.4]} 11.
f4 {[%clk 0:03:08.6]} 11... Nc5 {[%clk 0:02:55.3]} 12. Bf3 {[%clk 0:03:09.3]}
12... Qe7 {[%clk 0:02:56.4]} 13. Qg2 {[%clk 0:03:02.2]} 13... Re8 {[%clk
0:02:54.3]} 14. Rhe1 {[%clk 0:02:35.6]} 14... Be6 {[%clk 0:02:47.3]} 15. e5
{[%clk 0:02:02.1]} 15... dxe5 {[%clk 0:02:49.2]} 16. fxe5 {[%clk 0:02:03.4]}
16... Nfd7 {[%clk 0:02:38.1]} 17. Bg5 {[%clk 0:02:04.2]} 17... Qf8 {[%clk
0:02:39.3]} 18. Qg3 {[%clk 0:01:34.8]} 18... h6 {[%clk 0:02:29.7]} 19. Bf4
{[%clk 0:01:34.6]} 19... g5 {[%clk 0:02:31]} 20. Bd2 {[%clk 0:01:27.8]} 20... f5
{[%clk 0:02:28.4]} 21. exf6 {[%clk 0:01:23.4]} 21... Qxf6 {[%clk 0:02:29.4]} 22.
Nxe6 {[%clk 0:01:17.3]} 22... Nxe6 {[%clk 0:02:31.3]} 23. Bxb7 {[%clk
0:01:16.2]} 23... Rad8 {[%clk 0:02:30.8]} 24. Bd5 {[%clk 0:01:11.7]} 24... Kh8
{[%clk 0:02:27.3]} 25. Bxe6 {[%clk 0:01:08.7]} 25... Rxe6 {[%clk 0:02:29.2]} 26.
Rxe6 {[%clk 0:01:10.2]} 26... Qxe6 {[%clk 0:02:31.1]} 27. Qxc7 {[%clk
0:01:11.5]} 27... Rf8 {[%clk 0:02:27.8]} 28. Qxa7 {[%clk 0:01:11.6]} 28... Ne5
{[%clk 0:02:27.6]} 29. Qe3 {[%clk 0:01:05.8]} 29... Qa6 {[%clk 0:02:25.5]} 30.
Kb1 {[%clk 0:01:01.4]} 30... Nc4 {[%clk 0:02:26.2]} 31. Qc5 {[%clk 0:00:57.1]}
31... Rb8 {[%clk 0:02:25.5]} 32. b3 {[%clk 0:00:49.7]} 32... Nxd2+ {[%clk
0:02:15.9]} 33. Rxd2 {[%clk 0:00:47.8]} 33... Rc8 {[%clk 0:02:17.8]} 34. Qb5
{[%clk 0:00:42.5]} 34... Qf6 {[%clk 0:02:18.8]} 35. Rd3 {[%clk 0:00:34.7]} 35...
Qf1+ {[%clk 0:02:05.6]} 36. Nd1 {[%clk 0:00:29.8]} 36... Qg2 {[%clk 0:02:06.6]}
37. Ne3 {[%clk 0:00:24.4]} 37... Qg1+ {[%clk 0:02:07.6]} 38. Nd1 {[%clk
0:00:24.2]} 38... Qxh2 {[%clk 0:02:08.8]} 39. a4 {[%clk 0:00:25]} 39... Qxc2#
{[%clk 0:02:09.5]} 0-1

[Event "*** Titled Tuesday Blitz"]
[Site "Chess.com"]
[Date "2019.07.02"]
[Round "3"]
[White "fish7728"]
[Black "m3alam"]
[Result "0-1"]
[WhiteElo "2233"]
[BlackElo "2358"]
[TimeControl "180+2"]
[EndTime "13:37:58 PDT"]
[Termination "m3alam won by resignation"]

1. d4 {[%clk 0:03:01.9]} 1... c6 {[%clk 0:03:01.9]} 2. c4 {[%clk 0:03:02.3]}
2... d5 {[%clk 0:03:03.4]} 3. cxd5 {[%clk 0:03:03.2]} 3... cxd5 {[%clk 0:03:01]}
4. Nc3 {[%clk 0:03:04.8]} 4... Nc6 {[%clk 0:02:53.2]} 5. Bf4 {[%clk 0:03:05.8]}
5... a6 {[%clk 0:02:54]} 6. e3 {[%clk 0:03:04.6]} 6... Nf6 {[%clk 0:02:55.9]} 7.
Bd3 {[%clk 0:03:04.9]} 7... e6 {[%clk 0:02:33.9]} 8. Rc1 {[%clk 0:03:04.1]} 8...
Bd6 {[%clk 0:02:33]} 9. Bxd6 {[%clk 0:03:03.3]} 9... Qxd6 {[%clk 0:02:33.4]} 10.
f4 {[%clk 0:03:04.9]} 10... O-O {[%clk 0:02:30.4]} 11. Nf3 {[%clk 0:03:04.9]}
11... b5 {[%clk 0:02:31]} 12. O-O {[%clk 0:03:00]} 12... Bb7 {[%clk 0:02:32]}
13. Ne5 {[%clk 0:03:00.4]} 13... Rac8 {[%clk 0:02:29.5]} 14. Rf3 {[%clk
0:02:51.3]} 14... Ne7 {[%clk 0:02:26.5]} 15. Rh3 {[%clk 0:02:49.4]} 15... Ne4
{[%clk 0:02:24]} 16. Qh5 {[%clk 0:02:22.8]} 16... h6 {[%clk 0:02:20.2]} 17. Ng4
{[%clk 0:02:20.2]} 17... Nf5 {[%clk 0:02:16.2]} 18. Re1 {[%clk 0:02:03.1]} 18...
Qb4 {[%clk 0:02:12.1]} 19. Re2 {[%clk 0:01:49.3]} 19... Qa5 {[%clk 0:02:07.4]}
20. Nxh6+ {[%clk 0:01:38.7]} 20... Nxh6 {[%clk 0:02:00.1]} 21. g4 {[%clk
0:01:36.6]} 21... Nxc3 {[%clk 0:01:55.3]} 22. bxc3 {[%clk 0:01:35.1]} 22... Qxc3
{[%clk 0:01:54.5]} 23. Bc2 {[%clk 0:01:21.9]} 23... Qa1+ {[%clk 0:01:52.1]} 24.
Kf2 {[%clk 0:01:16.7]} 24... Qc1 {[%clk 0:01:50.3]} 25. g5 {[%clk 0:01:09.5]}
25... Rxc2 {[%clk 0:01:45.9]} 26. gxh6 {[%clk 0:01:10]} 26... Rxe2+ {[%clk
0:01:40.1]} 27. Kxe2 {[%clk 0:01:05.4]} 27... Qc2+ {[%clk 0:01:32.5]} 28. Ke1
{[%clk 0:01:00.6]} 28... Rc8 {[%clk 0:01:28.3]} 29. Rg3 {[%clk 0:00:48.4]} 29...
Qb1+ {[%clk 0:01:21.4]} 30. Kf2 {[%clk 0:00:45.3]} 30... Rc2+ {[%clk 0:01:19.9]}
0-1

[Event "*** Titled Tuesday Blitz"]
[Site "Chess.com"]
[Date "2019.07.02"]
[Round "3"]
[White "aa175"]
[Black "senecacrane"]
[Result "1-0"]
[WhiteElo "2258"]
[BlackElo "2326"]
[TimeControl "180+2"]
[EndTime "13:38:07 PDT"]
[Termination "aa175 won by resignation"]

1. d4 {[%clk 0:03:01.9]} 1... d5 {[%clk 0:02:59.4]} 2. Bf4 {[%clk 0:03:02.8]}
2... Nf6 {[%clk 0:02:59.9]} 3. e3 {[%clk 0:03:04.2]} 3... e6 {[%clk 0:03:01.4]}
4. Nd2 {[%clk 0:03:04.7]} 4... Bd6 {[%clk 0:03:02.9]} 5. Bg3 {[%clk 0:03:05.9]}
5... O-O {[%clk 0:03:03.9]} 6. Bd3 {[%clk 0:03:06.1]} 6... c5 {[%clk 0:03:04.7]}
7. c3 {[%clk 0:03:06.3]} 7... b6 {[%clk 0:03:05.2]} 8. Ngf3 {[%clk 0:03:07.4]}
8... Bb7 {[%clk 0:03:05]} 9. Qe2 {[%clk 0:03:05.1]} 9... Nc6 {[%clk 0:03:05.1]}
10. Rd1 {[%clk 0:03:05.1]} 10... Ne7 {[%clk 0:02:57.9]} 11. e4 {[%clk
0:02:59.6]} 11... Bxg3 {[%clk 0:02:14.6]} 12. hxg3 {[%clk 0:03:00]} 12... dxe4
{[%clk 0:01:59.4]} 13. Nxe4 {[%clk 0:03:00.3]} 13... Ng6 {[%clk 0:01:33.3]} 14.
dxc5 {[%clk 0:02:52.3]} 14... Nd5 {[%clk 0:01:05.7]} 15. O-O {[%clk 0:02:09.4]}
15... Qc7 {[%clk 0:00:56.6]} 16. cxb6 {[%clk 0:01:54.5]} 16... axb6 {[%clk
0:00:57]} 17. a3 {[%clk 0:01:53.6]} 17... Rfd8 {[%clk 0:00:51.1]} 18. Neg5
{[%clk 0:01:49.4]} 18... Ra4 {[%clk 0:00:41.5]} 19. Rfe1 {[%clk 0:01:27.2]}
19... Nf6 {[%clk 0:00:28.9]} 20. Bxg6 {[%clk 0:01:21.7]} 20... hxg6 {[%clk
0:00:28.7]} 21. Rxd8+ {[%clk 0:01:22]} 21... Qxd8 {[%clk 0:00:30.4]} 22. Nxf7
{[%clk 0:01:14.3]} 22... Kxf7 {[%clk 0:00:25]} 23. Ng5+ {[%clk 0:01:14.9]} 23...
Kf8 {[%clk 0:00:10.3]} 24. Nxe6+ {[%clk 0:01:15.5]} 24... Ke7 {[%clk 0:00:11.8]}
25. Nxd8+ {[%clk 0:01:12.8]} 25... Kxd8 {[%clk 0:00:13.7]} 26. Qd1+ {[%clk
0:01:14.1]} 1-0

[Event "*** Titled Tuesday Blitz"]
[Site "Chess.com"]
[Date "2019.07.02"]
[Round "3"]
[White "vova-79"]
[Black "evgenyermolaev"]
[Result "0-1"]
[WhiteElo "2397"]
[BlackElo "2494"]
[TimeControl "180+2"]
[EndTime "13:38:12 PDT"]
[Termination "evgenyermolaev won by resignation"]

1. d4 {[%clk 0:03:01.7]} 1... Nf6 {[%clk 0:03:00.6]} 2. c4 {[%clk 0:03:02.2]}
2... c5 {[%clk 0:03:02.5]} 3. d5 {[%clk 0:03:01.9]} 3... g6 {[%clk 0:03:04.4]}
4. Nc3 {[%clk 0:03:01.1]} 4... Bg7 {[%clk 0:03:06.1]} 5. e4 {[%clk 0:03:01.7]}
5... d6 {[%clk 0:03:08]} 6. f4 {[%clk 0:03:02.6]} 6... O-O {[%clk 0:03:09.6]} 7.
Nf3 {[%clk 0:03:03.9]} 7... e6 {[%clk 0:03:11.2]} 8. Be2 {[%clk 0:03:03.4]} 8...
exd5 {[%clk 0:03:12.8]} 9. cxd5 {[%clk 0:03:04.8]} 9... Bg4 {[%clk 0:03:14.2]}
10. O-O {[%clk 0:03:04.4]} 10... Nbd7 {[%clk 0:03:15.1]} 11. h3 {[%clk
0:02:49.2]} 11... Bxf3 {[%clk 0:03:16]} 12. Bxf3 {[%clk 0:02:51.1]} 12... Ne8
{[%clk 0:03:17.5]} 13. g4 {[%clk 0:02:29.5]} 13... Nc7 {[%clk 0:03:17.7]} 14. a4
{[%clk 0:02:25.2]} 14... f5 {[%clk 0:03:12.8]} 15. gxf5 {[%clk 0:02:13.8]} 15...
gxf5 {[%clk 0:03:14.7]} 16. e5 {[%clk 0:02:15.6]} 16... dxe5 {[%clk 0:03:14.1]}
17. d6 {[%clk 0:02:16.3]} 17... Ne8 {[%clk 0:03:05.5]} 18. Bxb7 {[%clk
0:02:02.3]} 18... Rb8 {[%clk 0:03:06.9]} 19. Bc6 {[%clk 0:02:01.1]} 19... e4
{[%clk 0:03:00.4]} 20. Qd5+ {[%clk 0:01:51.7]} 20... Kh8 {[%clk 0:03:01.5]} 21.
Qe6 {[%clk 0:01:51.2]} 21... Nb6 {[%clk 0:02:47.7]} 22. Be3 {[%clk 0:01:27.8]}
22... Qxd6 {[%clk 0:02:38.6]} 23. Qxd6 {[%clk 0:01:26.4]} 23... Nxd6 {[%clk
0:02:40.5]} 24. Bxc5 {[%clk 0:01:27.2]} 24... Rfd8 {[%clk 0:02:41.7]} 25. Rad1
{[%clk 0:01:20.3]} 25... Ndc4 {[%clk 0:02:41.6]} 26. a5 {[%clk 0:01:15]} 26...
Nxb2 {[%clk 0:02:34.2]} 27. Rxd8+ {[%clk 0:01:05]} 27... Rxd8 {[%clk 0:02:36.1]}
28. axb6 {[%clk 0:01:04.8]} 28... axb6 {[%clk 0:02:38]} 29. Bxb6 {[%clk
0:01:04.3]} 29... Rd6 {[%clk 0:02:37]} 30. Na4 {[%clk 0:00:47.5]} 30... Rxc6
{[%clk 0:02:30.9]} 31. Nxb2 {[%clk 0:00:47.3]} 31... Rxb6 {[%clk 0:02:28.8]} 32.
Nc4 {[%clk 0:00:47.5]} 32... Bd4+ {[%clk 0:02:26]} 33. Kg2 {[%clk 0:00:46.9]}
33... Rb4 {[%clk 0:02:23]} 34. Nd6 {[%clk 0:00:45.4]} 34... Rb2+ {[%clk
0:02:22.5]} 35. Kh1 {[%clk 0:00:43.6]} 35... e3 {[%clk 0:02:21.6]} 36. Nc4
{[%clk 0:00:19.9]} 36... e2 {[%clk 0:02:19]} 37. Re1 {[%clk 0:00:19.8]} 37...
Rc2 {[%clk 0:02:18.2]} 0-1

[Event "*** Titled Tuesday Blitz"]
[Site "Chess.com"]
[Date "2019.07.02"]
[Round "3"]
[White "ASargsyan1"]
[Black "SavelievAlexei"]
[Result "1-0"]
[WhiteElo "2595"]
[BlackElo "2352"]
[TimeControl "180+2"]
[EndTime "13:38:14 PDT"]
[Termination "ASargsyan1 won by resignation"]

1. d4 {[%clk 0:03:01.9]} 1... Nf6 {[%clk 0:03:00.6]} 2. c4 {[%clk 0:03:02.5]}
2... e6 {[%clk 0:03:02]} 3. Nf3 {[%clk 0:03:03.8]} 3... b6 {[%clk 0:03:01.1]} 4.
g3 {[%clk 0:03:05.2]} 4... Bb7 {[%clk 0:03:00.7]} 5. Bg2 {[%clk 0:03:06.6]} 5...
Be7 {[%clk 0:03:01]} 6. O-O {[%clk 0:03:07.3]} 6... O-O {[%clk 0:03:02]} 7. d5
{[%clk 0:03:08.8]} 7... exd5 {[%clk 0:03:01.4]} 8. Nh4 {[%clk 0:03:10.1]} 8...
c6 {[%clk 0:02:56.3]} 9. cxd5 {[%clk 0:03:10.3]} 9... Nxd5 {[%clk 0:02:57.1]}
10. Nf5 {[%clk 0:03:11.6]} 10... Nc7 {[%clk 0:02:52.4]} 11. e4 {[%clk
0:03:10.1]} 11... d5 {[%clk 0:02:53.5]} 12. exd5 {[%clk 0:02:57]} 12... Nxd5
{[%clk 0:02:52.9]} 13. Qg4 {[%clk 0:02:28.7]} 13... Bf6 {[%clk 0:02:18.8]} 14.
Rd1 {[%clk 0:02:29]} 14... Nd7 {[%clk 0:02:07.9]} 15. Nc3 {[%clk 0:02:06.2]}
15... Ne5 {[%clk 0:02:05.5]} 16. Qh3 {[%clk 0:01:55.2]} 16... g6 {[%clk
0:01:38.3]} 17. Nxd5 {[%clk 0:01:36.5]} 17... cxd5 {[%clk 0:01:38.1]} 18. Ne3
{[%clk 0:01:30.8]} 18... Qc8 {[%clk 0:01:11.2]} 19. Nxd5 {[%clk 0:01:15.2]}
19... Qxh3 {[%clk 0:00:37.4]} 20. Nxf6+ {[%clk 0:01:07.4]} 20... Kg7 {[%clk
0:00:38.2]} 21. Bxh3 {[%clk 0:01:08]} 21... Kxf6 {[%clk 0:00:29]} 22. f4 {[%clk
0:01:07.5]} 22... Nc4 {[%clk 0:00:13.4]} 23. b3 {[%clk 0:01:07.7]} 23... Na5
{[%clk 0:00:09.4]} 24. Bb2+ {[%clk 0:01:07.8]} 24... Ke7 {[%clk 0:00:10.8]} 25.
Rd7+ {[%clk 0:01:09.1]} 1-0

[Event "*** Titled Tuesday Blitz"]
[Site "Chess.com"]
[Date "2019.07.02"]
[Round "3"]
[White "StoreySniper"]
[Black "moro182"]
[Result "0-1"]
[WhiteElo "2471"]
[BlackElo "2784"]
[TimeControl "180+2"]
[EndTime "13:38:17 PDT"]
[Termination "moro182 won by resignation"]

1. b4 {[%clk 0:03:01.9]} 1... a5 {[%clk 0:02:56.8]} 2. Bb2 {[%clk 0:03:03.8]}
2... axb4 {[%clk 0:02:56.5]} 3. Nf3 {[%clk 0:03:03.9]} 3... Nf6 {[%clk
0:02:54.5]} 4. g3 {[%clk 0:03:05.8]} 4... b6 {[%clk 0:02:54.4]} 5. Bg2 {[%clk
0:03:04.7]} 5... Bb7 {[%clk 0:02:55.4]} 6. O-O {[%clk 0:03:05.6]} 6... e6 {[%clk
0:02:56.5]} 7. a3 {[%clk 0:03:06.3]} 7... bxa3 {[%clk 0:02:57.3]} 8. Nxa3 {[%clk
0:03:04.1]} 8... Be7 {[%clk 0:02:58.1]} 9. c4 {[%clk 0:03:04.3]} 9... O-O {[%clk
0:02:58.5]} 10. d4 {[%clk 0:03:04]} 10... d5 {[%clk 0:02:55.4]} 11. cxd5 {[%clk
0:03:02.1]} 11... exd5 {[%clk 0:02:44.6]} 12. Ne5 {[%clk 0:03:03.1]} 12... Nbd7
{[%clk 0:02:42.6]} 13. Qc2 {[%clk 0:03:02.8]} 13... c5 {[%clk 0:02:40.6]} 14.
Nb5 {[%clk 0:03:02.1]} 14... Qb8 {[%clk 0:01:36.3]} 15. Rxa8 {[%clk 0:02:59.9]}
15... Bxa8 {[%clk 0:01:38.2]} 16. Nxd7 {[%clk 0:02:58.7]} 16... Nxd7 {[%clk
0:01:37.6]} 17. dxc5 {[%clk 0:02:58.3]} 17... bxc5 {[%clk 0:01:39.5]} 18. Nc3
{[%clk 0:02:49.8]} 18... Nf6 {[%clk 0:01:35.2]} 19. Ra1 {[%clk 0:02:48.3]} 19...
Bc6 {[%clk 0:00:56.8]} 20. e3 {[%clk 0:02:43]} 20... Qb7 {[%clk 0:00:56.6]} 21.
Ne2 {[%clk 0:02:42.6]} 21... Rb8 {[%clk 0:00:55.2]} 22. Bxf6 {[%clk 0:02:41.5]}
22... Bxf6 {[%clk 0:00:55.7]} 23. Rc1 {[%clk 0:02:41.5]} 23... c4 {[%clk
0:00:50.7]} 24. Nf4 {[%clk 0:02:28.2]} 24... Be5 {[%clk 0:00:35.8]} 25. Ne2
{[%clk 0:02:25.5]} 25... g6 {[%clk 0:00:28.3]} 26. h4 {[%clk 0:02:25]} 26... Qb2
{[%clk 0:00:28.4]} 27. Qd1 {[%clk 0:02:25]} 27... c3 {[%clk 0:00:14.5]} 28. Kh2
{[%clk 0:02:21]} 28... Bb5 {[%clk 0:00:11.7]} 29. Rc2 {[%clk 0:02:21.4]} 29...
Ba4 {[%clk 0:00:08.1]} 30. Qxd5 {[%clk 0:02:20.3]} 30... Qxc2 {[%clk 0:00:07.4]}
31. Qxe5 {[%clk 0:02:21.6]} 31... Rc8 {[%clk 0:00:08]} 32. Nd4 {[%clk
0:02:22.3]} 32... Qxf2 {[%clk 0:00:07.7]} 33. Qa5 {[%clk 0:02:17.3]} 33... c2
{[%clk 0:00:08.5]} 34. Nxc2 {[%clk 0:02:05.3]} 34... Bxc2 {[%clk 0:00:10.4]} 35.
Qa6 {[%clk 0:02:05.7]} 35... Bf5 {[%clk 0:00:11.3]} 36. e4 {[%clk 0:02:05.3]}
36... Be6 {[%clk 0:00:07.2]} 37. h5 {[%clk 0:02:05.2]} 37... gxh5 {[%clk
0:00:08.1]} 38. Qa3 {[%clk 0:02:06.6]} 38... h4 {[%clk 0:00:07.2]} 39. Qe7
{[%clk 0:02:08.5]} 39... Qxg3+ {[%clk 0:00:08.3]} 40. Kh1 {[%clk 0:02:08.9]}
40... Rc1+ {[%clk 0:00:10.2]} 0-1

[Event "*** Titled Tuesday Blitz"]
[Site "Chess.com"]
[Date "2019.07.02"]
[Round "3"]
[White "Kawhi_Leonard2"]
[Black "Heineccius"]
[Result "1/2-1/2"]
[WhiteElo "2315"]
[BlackElo "2512"]
[TimeControl "180+2"]
[EndTime "13:38:36 PDT"]
[Termination "Game drawn by repetition"]

1. e4 {[%clk 0:03:01.9]} 1... c5 {[%clk 0:02:59.6]} 2. Nf3 {[%clk 0:03:02.6]}
2... e6 {[%clk 0:03:00.8]} 3. d4 {[%clk 0:03:03.7]} 3... cxd4 {[%clk 0:03:01.7]}
4. Nxd4 {[%clk 0:03:05.6]} 4... a6 {[%clk 0:03:02.7]} 5. Nc3 {[%clk 0:03:06.8]}
5... Qc7 {[%clk 0:03:03.2]} 6. Be2 {[%clk 0:03:07.9]} 6... b5 {[%clk 0:03:02.6]}
7. Bf3 {[%clk 0:03:05.1]} 7... Bb7 {[%clk 0:03:02.5]} 8. O-O {[%clk 0:03:04.4]}
8... Nc6 {[%clk 0:03:03.5]} 9. Nxc6 {[%clk 0:03:03.9]} 9... dxc6 {[%clk
0:03:03.9]} 10. a4 {[%clk 0:02:56.2]} 10... e5 {[%clk 0:03:02.9]} 11. axb5
{[%clk 0:02:56.1]} 11... axb5 {[%clk 0:03:03.8]} 12. Rxa8+ {[%clk 0:02:55.6]}
12... Bxa8 {[%clk 0:03:04.5]} 13. Be3 {[%clk 0:02:57.1]} 13... Nf6 {[%clk
0:03:05.2]} 14. Qa1 {[%clk 0:02:56.1]} 14... Bb7 {[%clk 0:03:03.8]} 15. Qa7
{[%clk 0:02:55.9]} 15... Be7 {[%clk 0:02:50.9]} 16. Bb6 {[%clk 0:02:51.3]} 16...
Qc8 {[%clk 0:02:51.2]} 17. Rd1 {[%clk 0:02:35.8]} 17... O-O {[%clk 0:02:50.1]}
18. Bc5 {[%clk 0:02:25.7]} 18... Bxc5 {[%clk 0:02:40.8]} 19. Qxc5 {[%clk
0:02:25.9]} 19... Rd8 {[%clk 0:02:41.9]} 20. Rxd8+ {[%clk 0:02:20.4]} 20... Qxd8
{[%clk 0:02:42.4]} 21. Qxe5 {[%clk 0:02:20.2]} 21... Bc8 {[%clk 0:02:26.1]} 22.
h3 {[%clk 0:02:18.5]} 22... Be6 {[%clk 0:02:25]} 23. Qc5 {[%clk 0:02:15.5]}
23... h6 {[%clk 0:01:39.6]} 24. Qxc6 {[%clk 0:02:11.8]} 24... Qd2 {[%clk
0:01:39]} 25. e5 {[%clk 0:01:52.3]} 25... Qe1+ {[%clk 0:01:37.6]} 26. Kh2 {[%clk
0:01:48.9]} 26... Qxe5+ {[%clk 0:01:38.8]} 27. g3 {[%clk 0:01:49.7]} 27... b4
{[%clk 0:01:39.9]} 28. Ne4 {[%clk 0:01:35.8]} 28... Nd5 {[%clk 0:01:26.4]} 29.
Nc5 {[%clk 0:01:25.6]} 29... Qf5 {[%clk 0:01:19.5]} 30. Nxe6 {[%clk 0:01:13.4]}
30... Qxf3 {[%clk 0:01:15.4]} 31. Qa8+ {[%clk 0:00:57.3]} 31... Kh7 {[%clk
0:01:13.3]} 32. Nf8+ {[%clk 0:00:58.3]} 32... Kg8 {[%clk 0:01:13.8]} 33. Ng6+
{[%clk 0:00:58]} 33... Kh7 {[%clk 0:01:14.2]} 34. Nf8+ {[%clk 0:00:49.5]} 34...
Kg8 {[%clk 0:01:13.8]} 35. Nd7+ {[%clk 0:00:29.6]} 35... Kh7 {[%clk 0:01:13.8]}
36. Nf8+ {[%clk 0:00:29]} 1/2-1/2

[Event "*** Titled Tuesday Blitz"]
[Site "Chess.com"]
[Date "2019.07.02"]
[Round "3"]
[White "x-3738459472"]
[Black "enriquetejedor"]
[Result "0-1"]
[WhiteElo "2597"]
[BlackElo "2579"]
[TimeControl "180+2"]
[EndTime "13:38:43 PDT"]
[Termination "enriquetejedor won by resignation"]

1. e4 {[%clk 0:03:01.9]} 1... e6 {[%clk 0:02:57.8]} 2. d4 {[%clk 0:03:02.4]}
2... d5 {[%clk 0:02:59.5]} 3. Nd2 {[%clk 0:03:03.9]} 3... c5 {[%clk 0:02:55.5]}
4. exd5 {[%clk 0:03:04.5]} 4... Qxd5 {[%clk 0:02:54.1]} 5. Ngf3 {[%clk
0:03:05.9]} 5... cxd4 {[%clk 0:02:55.3]} 6. Bc4 {[%clk 0:03:06.6]} 6... Qd7
{[%clk 0:02:54.8]} 7. Qe2 {[%clk 0:03:07.4]} 7... Nc6 {[%clk 0:02:45.6]} 8. Nb3
{[%clk 0:03:08]} 8... Nf6 {[%clk 0:02:45.3]} 9. Bg5 {[%clk 0:03:07.5]} 9... Bb4+
{[%clk 0:02:32.4]} 10. Nbd2 {[%clk 0:03:02]} 10... h6 {[%clk 0:02:21.8]} 11.
Bxf6 {[%clk 0:03:00.5]} 11... gxf6 {[%clk 0:02:22.7]} 12. O-O {[%clk 0:03:00.1]}
12... b6 {[%clk 0:01:52.3]} 13. Rad1 {[%clk 0:02:52.9]} 13... Bb7 {[%clk
0:01:53.2]} 14. c3 {[%clk 0:02:53.6]} 14... dxc3 {[%clk 0:01:50.2]} 15. Ne4
{[%clk 0:02:51.5]} 15... Qe7 {[%clk 0:01:46.7]} 16. bxc3 {[%clk 0:02:52.2]}
16... Bc5 {[%clk 0:01:47]} 17. Nd4 {[%clk 0:02:31.1]} 17... Bxd4 {[%clk
0:01:27.4]} 18. cxd4 {[%clk 0:02:33]} 18... Nb4 {[%clk 0:01:28.5]} 19. Bb5+
{[%clk 0:02:31.7]} 19... Kf8 {[%clk 0:01:29.5]} 20. Ng3 {[%clk 0:02:10.1]} 20...
Nd5 {[%clk 0:01:22.8]} 21. Bc4 {[%clk 0:02:10.2]} 21... Nc3 {[%clk 0:01:23.1]}
22. Qh5 {[%clk 0:02:06.4]} 22... Nxd1 {[%clk 0:01:23.6]} 23. Rxd1 {[%clk
0:02:08.3]} 23... Rc8 {[%clk 0:01:23.8]} 24. Bb3 {[%clk 0:02:06.8]} 24... f5
{[%clk 0:01:24.4]} 25. h4 {[%clk 0:02:01]} 25... f4 {[%clk 0:01:21.2]} 26. Ne2
{[%clk 0:01:59.9]} 26... Qf6 {[%clk 0:01:20.8]} 27. d5 {[%clk 0:01:53.8]} 27...
Rg8 {[%clk 0:01:21.8]} 28. Qf3 {[%clk 0:01:48.8]} 28... Rc5 {[%clk 0:01:21.8]}
29. Nxf4 {[%clk 0:01:44.8]} 29... exd5 {[%clk 0:01:10.8]} 30. g3 {[%clk
0:01:39.3]} 30... Rc3 {[%clk 0:00:44.3]} 31. Ne6+ {[%clk 0:01:31.4]} 31... Ke7
{[%clk 0:00:45.3]} 32. Qxf6+ {[%clk 0:01:28.2]} 32... Kxf6 {[%clk 0:00:46.4]}
33. Nf4 {[%clk 0:01:30]} 33... d4 {[%clk 0:00:45.8]} 34. Bd5 {[%clk 0:01:24.8]}
34... Bxd5 {[%clk 0:00:41.3]} 35. Nxd5+ {[%clk 0:01:25.3]} 35... Ke5 {[%clk
0:00:42.9]} 36. Nf4 {[%clk 0:01:22.6]} 36... Rgc8 {[%clk 0:00:40.5]} 37. Re1+
{[%clk 0:01:23.7]} 37... Kd6 {[%clk 0:00:40.7]} 38. Re4 {[%clk 0:01:24.5]} 38...
Rc1+ {[%clk 0:00:41.4]} 39. Kg2 {[%clk 0:01:25.4]} 39... R8c4 {[%clk 0:00:42.5]}
40. Ne2 {[%clk 0:01:21.6]} 40... d3 {[%clk 0:00:42.3]} 0-1